fUST/lending_fUST_20240921
["ID","MTS","AMOUNT","RATE_DAILY","PERIOD"]
[338687551,1726873848243,-200.71850299,0.00014761,2]
[338687552,1726873848252,-150.112233,0.000148,2]
[338687553,1726873848262,-150.112233,0.000149,2]
[338687554,1726873848271,-151.0,0.00014911,2]
[338687555,1726873848281,-951.123998,0.00014911,2]
[338687556,1726873848290,-951.123998,0.00014911,2]
[338687557,1726873848300,-151.0,0.00014911,2]
[338687558,1726873848309,-151.0,0.00014911,2]
[338687559,1726873848318,-184.113147,0.00014911,2]
[338687560,1726873848328,-184.113147,0.00014911,2]
[338687561,1726873848337,-151.0,0.00014911,2]
[338687562,1726873848347,-500.0,0.00014919,2]
[338687563,1726873848496,-1342.17,0.00014919,2]
[338687564,1726873848507,-500.0,0.00014919,2]
[338687565,1726873848517,-833.02,0.00014919,2]
[338687566,1726873848526,-167.83288246,0.0001492,2]
[338687567,1726873848536,-545.43711959,0.0001492,2]
[338687568,1726873848545,-500.0,0.0001492,2]
[338687569,1726873848555,-626.25,0.0001492,2]
[338687570,1726873848564,-500.0,0.0001492,2]
[338687571,1726873848574,-500.0,0.0001492,2]
[338687572,1726873848584,-500.0,0.0001492,2]
[338687573,1726873848593,-500.0,0.0001492,2]
[338687574,1726873848603,-500.0,0.0001492,2]
[338687575,1726873848612,-500.0,0.0001492,2]
[338687576,1726873848621,-500.0,0.0001492,2]
[338687577,1726873848632,-500.0,0.0001492,2]
[338687578,1726873848641,-500.0,0.0001492,2]
[338687579,1726873848652,-304.03323216,0.0001492,2]
[338687580,1726873848661,-500.0,0.0001492,2]
[338687581,1726873848672,-500.0,0.0001492,2]
[338687582,1726873848682,-500.0,0.0001492,2]
[338687583,1726873848691,-500.0,0.0001492,2]
[338687584,1726873848700,-500.0,0.0001492,2]
[338687585,1726873848709,-893.7,0.0001492,2]
[338687586,1726873848719,-500.0,0.0001492,2]
[338687587,1726873848729,-500.0,0.0001492,2]
[338687588,1726873848739,-500.0,0.0001492,2]
[338687589,1726873848749,-500.0,0.0001492,2]
[338687590,1726873848759,-500.0,0.0001492,2]
[338687591,1726873848769,-500.0,0.0001492,2]
[338687592,1726873848779,-500.0,0.0001492,2]
[338687593,1726873848789,-500.0,0.0001492,2]
[338687594,1726873848799,-500.0,0.0001492,2]
[338687595,1726873848809,-500.0,0.0001492,2]
[338687596,1726873848818,-500.0,0.0001492,2]
[338687597,1726873848828,-500.0,0.0001492,2]
[338687598,1726873848839,-500.0,0.0001492,2]
[338687599,1726873848849,-500.0,0.0001492,2]
[338687600,1726873848858,-500.0,0.0001492,2]
[338687601,1726873848869,-500.0,0.0001492,2]
[338687602,1726873848879,-500.0,0.0001492,2]
[338687603,1726873848890,-500.0,0.0001492,2]
[338687604,1726873848900,-18728.24,0.0001492,2]
[338687605,1726873848911,-500.0,0.0001492,2]
[338687606,1726873848920,-3195.2,0.0001492,2]
[338687607,1726873848930,-500.0,0.0001492,2]
[338687608,1726873848939,-239.2,0.0001492,2]
[338687609,1726873848949,-500.0,0.0001492,2]
[338687610,1726873848959,-500.0,0.0001492,2]
[338687611,1726873848968,-500.0,0.0001492,2]
[338687612,1726873848978,-500.0,0.0001492,2]
[338687613,1726873848988,-500.0,0.0001492,2]
[338687614,1726873848998,-500.0,0.0001492,2]
[338687615,1726873849008,-500.0,0.0001492,2]
[338687616,1726873849018,-626.93849436,0.0001492,2]
[338687617,1726873849027,-500.0,0.0001492,2]
[338687618,1726873849038,-500.0,0.0001492,2]
[338687619,1726873849048,-500.0,0.0001492,2]
[338687620,1726873849058,-186.49213446,0.0001492,2]
[338687621,1726873849067,-500.0,0.0001492,2]
[338687622,1726873849077,-626.3,0.0001492,2]
[338687623,1726873849087,-500.0,0.0001492,2]
[338687624,1726873849096,-500.0,0.0001492,2]
[338687625,1726873849106,-500.0,0.0001492,2]
[338687626,1726873849117,-500.0,0.0001492,2]
[338687627,1726873849127,-500.0,0.0001492,2]
[338687628,1726873849136,-500.0,0.0001492,2]
[338687629,1726873849147,-500.0,0.0001492,2]
[338687630,1726873849158,-500.0,0.0001492,2]
[338687631,1726873849168,-500.0,0.0001492,2]
[338687632,1726873849177,-500.0,0.0001492,2]
[338687633,1726873849187,-500.0,0.0001492,2]
[338687634,1726873849197,-500.0,0.0001492,2]
[338687635,1726873849207,-500.0,0.0001492,2]
[338687636,1726873849217,-500.0,0.0001492,2]
[338687637,1726873849228,-500.0,0.0001492,2]
[338687638,1726873849237,-500.0,0.0001492,2]
[338687639,1726873849247,-181.212739,0.00014929,2]
[338687640,1726873849257,-286.342554,0.00014929,2]
[338687641,1726873849266,-181.212739,0.00014929,2]
[338687642,1726873849276,-500.0,0.0001493,2]
[338687643,1726873849286,-500.0,0.0001493,2]
[338687644,1726873849295,-500.0,0.0001493,2]
[338687645,1726873849305,-151.0,0.0001493,2]
[338687646,1726873849315,-799.94,0.0001493,2]
[338687647,1726873849325,-500.0,0.0001493,2]
[338687648,1726873849335,-500.0,0.0001493,2]
[338687649,1726873849345,-151.0,0.0001493,2]
[338687650,1726873849354,-297.758002,0.0001493,2]
[338687651,1726873849364,-500.0,0.0001493,2]
[338687652,1726873849373,-500.0,0.0001493,2]
[338687653,1726873849383,-297.758002,0.0001493,2]
[338687654,1726873849393,-500.0,0.0001493,2]
[338687655,1726873849403,-500.0,0.0001493,2]
[338687656,1726873849412,-500.0,0.0001493,2]
[338687657,1726873849422,-500.0,0.0001493,2]
[338687658,1726873849432,-200.0,0.0001493,2]
[338687659,1726873849441,-422.137067,0.0001493,2]
[338687660,1726873849451,-422.137067,0.0001493,2]
[338687661,1726873849461,-500.0,0.0001493,2]
[338687662,1726873849470,-151.0,0.0001493,2]
[338687663,1726873849480,-786.54,0.0001493,2]
[338687665,1726873849489,-151.0,0.0001493,2]
[338687666,1726873849498,-151.0,0.0001493,2]
[338687667,1726873849508,-151.0,0.0001493,2]
[338687668,1726873849517,-151.0,0.0001493,2]
[338687669,1726873849527,-430.520216,0.0001493,2]
[338687670,1726873849536,-430.520216,0.0001493,2]
[338687671,1726873849545,-392.037497,0.0001493,2]
[338687672,1726873849555,-392.037497,0.0001493,2]
[338687673,1726873849564,-151.0,0.00014931,2]
[338687674,1726873849575,-500.0,0.00014931,2]
[338687675,1726873849585,-596.90742919,0.00014931,2]
[338687676,1726873849596,-500.0,0.00014931,2]
[338687677,1726873849606,-598.85028302,0.00014931,2]
[338687678,1726873849618,-268.290495,0.00014931,2]
[338687679,1726873849631,-500.0,0.00014931,2]
[338687680,1726873849641,-268.290495,0.00014931,2]
[338687681,1726873849653,-500.0,0.00014931,2]
[338687682,1726873849663,-500.0,0.00014931,2]
[338687683,1726873849672,-500.0,0.00014931,2]
[338687684,1726873849682,-500.0,0.00014931,2]
[338687685,1726873849692,-500.0,0.00014931,2]
[338687686,1726873849701,-500.0,0.00014931,2]
[338687687,1726873849710,-500.0,0.00014931,2]
[338687688,1726873849719,-500.0,0.00014931,2]
[338687689,1726873849728,-500.0,0.00014931,2]
[338687690,1726873849737,-523.27754454,0.00014931,2]
[338687691,1726873849748,-359.24514943,0.00014931,2]
[338687692,1726873849757,-500.0,0.00014931,2]
[338687693,1726873849767,-500.0,0.00014931,2]
[338687694,1726873849776,-926.63,0.00014931,2]
[338687695,1726873849785,-500.0,0.00014931,2]
[338687696,1726873849794,-500.0,0.00014931,2]
[338687697,1726873849804,-500.0,0.00014931,2]
[338687698,1726873849814,-650.02,0.00014931,2]
[338687699,1726873849825,-591.58,0.00014931,2]
[338687700,1726873849834,-500.0,0.00014931,2]
[338687701,1726873849845,-627.74,0.00014931,2]
[338687702,1726873849854,-500.0,0.00014931,2]
[338687703,1726873849865,-500.0,0.00014931,2]
[338687704,1726873849875,-504.08,0.00014931,2]
[338687705,1726873849895,-643.87,0.00014931,2]
[338687706,1726873849905,-500.0,0.00014931,2]
[338687707,1726873849915,-500.0,0.00014931,2]
[338687708,1726873849925,-500.0,0.00014931,2]
[338687709,1726873849934,-500.0,0.00014931,2]
[338687710,1726873849946,-500.0,0.00014931,2]
[338687711,1726873849955,-500.0,0.00014931,2]
[338687712,1726873849964,-500.0,0.00014931,2]
[338687713,1726873849974,-603.8,0.00014931,2]
[338687714,1726873849983,-500.0,0.00014931,2]
[338687715,1726873849991,-500.0,0.00014931,2]
[338687716,1726873850000,-500.0,0.00014931,2]
[338687717,1726873850010,-500.0,0.00014931,2]
[338687718,1726873850021,-500.0,0.00014931,2]
[338687719,1726873850031,-500.0,0.00014931,2]
[338687720,1726873850042,-455.14504147,0.00014931,2]
[338687721,1726873850052,-500.0,0.00014931,2]
[338687722,1726873850062,-500.0,0.00014931,2]
[338687723,1726873850072,-500.0,0.00014931,2]
[338687724,1726873850083,-559.57,0.00014931,2]
[338687725,1726873850092,-500.0,0.00014931,2]
[338687726,1726873850103,-500.0,0.00014931,2]
[338687727,1726873850113,-500.0,0.00014931,2]
[338687728,1726873850124,-500.0,0.00014931,2]
[338687729,1726873850136,-500.0,0.00014931,2]
[338687730,1726873850146,-500.0,0.00014931,2]
[338687731,1726873850160,-500.0,0.00014931,2]
[338687732,1726873850169,-500.0,0.00014931,2]
[338687733,1726873850178,-184.113147,0.00014931,2]
[338687734,1726873850187,-184.113147,0.00014931,2]
[338687735,1726873850199,-1817.1011316,0.0001494,2]
[338687736,1726873850209,-7139.2745635,0.00014964,2]
[338687737,1726873850219,-500.0,0.00014966,2]
[338687738,1726873850230,-240.046917,0.00014969,2]
[338687739,1726873850240,-240.046917,0.00014969,2]
[338687740,1726873850252,-151.0,0.00014969,2]
[338687741,1726873850261,-1499.99999901,0.0001498,2]
[338687742,1726873850270,-150.112233,0.00015,2]
[338687743,1726873850279,-151.0,0.00015068,2]
[338687744,1726873850289,-268.290495,0.00015068,2]
[338687745,1726873850298,-268.290495,0.00015068,2]
[338687746,1726873850307,-6093.771182,0.00015068,2]
[338687747,1726873850317,-1097.67301331,0.00015095,2]
[338687748,1726873850326,-150.112233,0.000151,2]
[338687749,1726873850335,-150.112233,0.000151,2]
[338687750,1726873850344,-160.0,0.00015193,2]
[338687751,1726873850354,-500.0,0.00015193,2]
[338687752,1726873850363,-1342.17,0.00015193,2]
[338687753,1726873850374,-500.0,0.00015193,2]
[338687754,1726873850386,-833.02,0.00015193,2]
[338687755,1726873850397,-951.123998,0.00015194,2]
[338687756,1726873850407,-951.123998,0.00015194,2]
[338687757,1726873850416,-151.0,0.00015194,2]
[338687758,1726873850426,-500.0,0.00015194,2]
[338687759,1726873850436,-626.25,0.00015194,2]
[338687760,1726873850446,-500.0,0.00015194,2]
[338687761,1726873850455,-500.0,0.00015194,2]
[338687762,1726873850465,-500.0,0.00015194,2]
[338687763,1726873850474,-500.0,0.00015194,2]
[338687764,1726873850484,-500.0,0.00015194,2]
[338687765,1726873850494,-500.0,0.00015194,2]
[338687766,1726873850504,-500.0,0.00015194,2]
[338687767,1726873850517,-500.0,0.00015194,2]
[338687768,1726873850526,-500.0,0.00015194,2]
[338687769,1726873850536,-151.0,0.00015194,2]
[338687770,1726873850547,-500.0,0.00015194,2]
[338687771,1726873850556,-500.0,0.00015194,2]
[338687772,1726873850565,-500.0,0.00015194,2]
[338687773,1726873850574,-500.0,0.00015194,2]
[338687774,1726873850583,-291.09388342,0.00015194,2]
[338687775,1726873850592,-893.7,0.00015194,2]
[338687776,1726873850602,-500.0,0.00015194,2]
[338687777,1726873850611,-500.0,0.00015194,2]
[338687778,1726873850620,-500.0,0.00015194,2]
[338687779,1726873850629,-500.0,0.00015194,2]
[338687780,1726873850638,-500.0,0.00015194,2]
[338687781,1726873850647,-500.0,0.00015194,2]
[338687782,1726873850656,-178.21792266,0.00015194,2]
[338687783,1726873850668,-500.0,0.00015194,2]
[338687784,1726873850677,-500.0,0.00015194,2]
[338687785,1726873850686,-500.0,0.00015194,2]
[338687786,1726873850695,-500.0,0.00015194,2]
[338687787,1726873850705,-500.0,0.00015194,2]
[338687788,1726873850714,-500.0,0.00015194,2]
[338687789,1726873850724,-18728.24,0.00015194,2]
[338687790,1726873850734,-500.0,0.00015194,2]
[338687791,1726873850743,-151.0,0.00015194,2]
[338687792,1726873850752,-151.0,0.00015194,2]
[338687793,1726873850761,-3195.2,0.00015194,2]
[338687794,1726873850770,-500.0,0.00015194,2]
[338687795,1726873850780,-500.0,0.00015194,2]
[338687796,1726873850790,-500.0,0.00015194,2]
[338687797,1726873850799,-500.0,0.00015194,2]
[338687798,1726873850808,-500.0,0.00015194,2]
[338687799,1726873850818,-449.326538,0.00015194,2]
[338687800,1726873850827,-449.326538,0.00015194,2]
[338687801,1726873850836,-500.0,0.00015194,2]
[338687802,1726873850845,-500.0,0.00015194,2]
[338687803,1726873850855,-500.0,0.00015194,2]
[338687804,1726873850864,-500.0,0.00015194,2]
[338687805,1726873850874,-500.0,0.00015194,2]
[338687806,1726873850883,-626.3,0.00015194,2]
[338687807,1726873850892,-151.0,0.00015194,2]
[338687808,1726873850901,-500.0,0.00015194,2]
[338687809,1726873850910,-151.0,0.00015194,2]
[338687810,1726873850920,-500.0,0.00015194,2]
[338687811,1726873850932,-500.0,0.00015194,2]
[338687812,1726873850943,-500.0,0.00015194,2]
[338687813,1726873850954,-500.0,0.00015194,2]
[338687814,1726873850964,-500.0,0.00015194,2]
[338687815,1726873850973,-183.54,0.00015194,2]
[338687816,1726873850983,-500.0,0.00015194,2]
[338687817,1726873850992,-500.0,0.00015194,2]
[338687818,1726873851002,-571.635939,0.00015194,2]
[338687819,1726873851012,-500.0,0.00015194,2]
[338687820,1726873851021,-500.0,0.00015194,2]
[338687821,1726873851030,-571.635939,0.00015194,2]
[338687822,1726873851041,-657.843271,0.00015194,2]
[338687823,1726873851051,-500.0,0.00015194,2]
[338687824,1726873851061,-657.843271,0.00015194,2]
[338687825,1726873851070,-912.723033,0.00015194,2]
[338687826,1726873851081,-500.0,0.00015194,2]
[338687827,1726873851092,-912.723033,0.00015194,2]
[338687828,1726873851103,-500.0,0.00015194,2]
[338687829,1726873851112,-500.0,0.00015194,2]
[338687830,1726873851123,-500.0,0.00015194,2]
[338687831,1726873851132,-165.88898759,0.00015204,2]
[338687832,1726873851143,-6488.67708046,0.00015204,2]
[338687833,1726873851157,-500.0,0.00015204,2]
[338687834,1726873851170,-500.0,0.00015204,2]
[338687835,1726873851181,-500.0,0.00015204,2]
[338687836,1726873851191,-799.94,0.00015204,2]
[338687837,1726873851202,-402.83,0.00015204,2]
[338687838,1726873851212,-500.0,0.00015204,2]
[338687839,1726873851221,-500.0,0.00015204,2]
[338687840,1726873851231,-500.0,0.00015204,2]
[338687841,1726873851242,-500.0,0.00015204,2]
[338687842,1726873851252,-200.0,0.00015204,2]
[338687843,1726873851263,-500.0,0.00015204,2]
[338687844,1726873851273,-786.54,0.00015204,2]
[338687845,1726873851282,-500.0,0.00015205,2]
[338687846,1726873851291,-500.0,0.00015205,2]
[338687847,1726873851300,-500.0,0.00015205,2]
[338687848,1726873851309,-500.0,0.00015205,2]
[338687849,1726873851318,-500.0,0.00015205,2]
[338687850,1726873851330,-500.0,0.00015205,2]
[338687851,1726873851339,-500.0,0.00015205,2]
[338687852,1726873851349,-520.09191297,0.00015205,2]
[338687853,1726873851359,-500.0,0.00015205,2]
[338687854,1726873851368,-926.63,0.00015205,2]
[338687855,1726873851378,-500.0,0.00015205,2]
[338687856,1726873851388,-500.0,0.00015205,2]
[338687857,1726873851398,-650.02,0.00015205,2]
[338687858,1726873851408,-591.58,0.00015205,2]
[338687859,1726873851417,-500.0,0.00015205,2]
[338687860,1726873851426,-627.74,0.00015205,2]
[338687861,1726873851436,-500.0,0.00015205,2]
[338687862,1726873851445,-273.7810641,0.00015205,2]
[338687863,1726873851455,-504.08,0.00015205,2]
[338687864,1726873851464,-643.87,0.00015205,2]
[338687865,1726873851473,-500.0,0.00015205,2]
[338687866,1726873851482,-500.0,0.00015205,2]
[338687867,1726873851493,-500.0,0.00015205,2]
[338687868,1726873851503,-500.0,0.00015205,2]
[338687869,1726873851513,-500.0,0.00015205,2]
[338687870,1726873851523,-500.0,0.00015205,2]
[338687871,1726873851536,-500.0,0.00015205,2]
[338687872,1726873851547,-603.8,0.00015205,2]
[338687873,1726873851558,-500.0,0.00015205,2]
[338687874,1726873851569,-500.0,0.00015205,2]
[338687875,1726873851579,-500.0,0.00015205,2]
[338687876,1726873851589,-500.0,0.00015205,2]
[338687877,1726873851598,-500.0,0.00015205,2]
[338687878,1726873851607,-330.86102192,0.00015205,2]
[338687879,1726873851616,-500.0,0.00015205,2]
[338687880,1726873851625,-500.0,0.00015205,2]
[338687881,1726873851636,-500.0,0.00015205,2]
[338687882,1726873851648,-559.57,0.00015205,2]
[338687883,1726873851657,-500.0,0.00015205,2]
[338687884,1726873851667,-500.0,0.00015205,2]
[338687885,1726873851676,-500.0,0.00015205,2]
[338687886,1726873851686,-468.02,0.00015205,2]
[338687887,1726873851805,-500.0,0.00015205,2]
[338687888,1726873851828,-500.0,0.00015205,2]
[338687889,1726873851838,-500.0,0.00015205,2]
[338687890,1726873851847,-181.212739,0.00015205,2]
[338687891,1726873851856,-181.212739,0.00015205,2]
[338687892,1726873851866,-151.0,0.00015205,2]
[338687893,1726873851875,-151.0,0.00015205,2]
[338687894,1726873851886,-430.520216,0.00015205,2]
[338687895,1726873851896,-430.520216,0.00015205,2]
[338687896,1726873851905,-392.037497,0.00015205,2]
[338687897,1726873851916,-392.037497,0.00015205,2]
[338687898,1726873851926,-240.046917,0.00015222,2]
[338687899,1726873851937,-240.046917,0.00015222,2]
[338687900,1726873851946,-151.0,0.00015222,2]
[338687901,1726873851956,-151.0,0.00015222,2]
[338687902,1726873851966,-297.758002,0.00015222,2]
[338687903,1726873851975,-297.758002,0.00015222,2]
[338687904,1726873851984,-422.137067,0.00015222,2]
[338687905,1726873851994,-422.137067,0.00015222,2]
[338687906,1726873852003,-151.0,0.00015222,2]
[338687907,1726873852012,-151.0,0.00015222,2]
[338687908,1726873852022,-151.0,0.00015232,2]
[338687909,1726873852031,-151.0,0.00015232,2]
[338687910,1726873852041,-248.82804,0.00015232,2]
[338687911,1726873852051,-248.82804,0.00015232,2]
[338687912,1726873852060,-151.0,0.00015232,2]
[338687913,1726873852070,-259.544407,0.00015232,2]
[338687914,1726873852081,-151.0,0.00015232,2]
[338687915,1726873852091,-151.0,0.00015232,2]
[338687916,1726873852100,-151.0,0.00015232,2]
[338687917,1726873852110,-222.200814,0.00015232,2]
[338687918,1726873852120,-151.0,0.00015232,2]
[338687919,1726873852130,-442.910501,0.00015232,2]
[338687920,1726873852140,-151.0,0.00015232,2]
[338687921,1726873852153,-442.910501,0.00015232,2]
[338687922,1726873852163,-151.0,0.00015232,2]
[338687923,1726873852172,-151.0,0.00015232,2]
[338687924,1726873852182,-151.0,0.00015232,2]
[338687925,1726873852195,-184.113147,0.00015232,2]
[338687926,1726873852206,-184.113147,0.00015232,2]
[338687927,1726873852215,-151.0,0.00015244,2]
[338687928,1726873852228,-268.290495,0.00015244,2]
[338687929,1726873852238,-268.290503,0.00015244,2]
[338687930,1726873852249,-500.95299395,0.00015273,2]
[338687931,1726873852259,-500.0,0.00015292,2]
[338687932,1726873852269,-333.06869054,0.00015292,2]
[338687933,1726873852280,-500.0,0.00015304,2]
[338687934,1726873852290,-500.0,0.00015304,2]
[338687935,1726873852301,-513.64292553,0.00015304,2]
[338687936,1726873852311,-500.0,0.00015305,2]
[338687937,1726873852321,-318.18412294,0.00015341,2]
[338687938,1726873852331,-500.0,0.00015341,2]
[338687939,1726873852342,-500.0,0.00015341,2]
[338687940,1726873852353,-500.0,0.00015341,2]
[338687941,1726873852363,-500.0,0.00015341,2]
[338687942,1726873852372,-500.0,0.00015341,2]
[338687943,1726873852382,-500.0,0.00015341,2]
[338687944,1726873852393,-499.0,0.00015341,2]
[338687945,1726873852403,-500.0,0.00015344,2]
[338687946,1726873852413,-500.0,0.00015344,2]
[338687947,1726873852424,-175.98272928,0.00015393,2]
[338687948,1726873852434,-150.112233,0.000154,2]
[338687949,1726873852443,-1817.1011316,0.0001544,2]
[338687950,1726873852453,-951.123998,0.00015463,2]
[338687951,1726873852462,-951.123998,0.00015463,2]
[338687952,1726873852472,-151.0,0.00015463,2]
[338687953,1726873852482,-151.0,0.00015463,2]
[338687954,1726873852492,-151.0,0.00015463,2]
[338687955,1726873852504,-500.0,0.00015467,2]
[338687956,1726873852516,-1342.17,0.00015467,2]
[338687957,1726873852526,-500.0,0.00015467,2]
[338687958,1726873852538,-833.02,0.00015467,2]
[338687959,1726873852548,-151.0,0.00015468,2]
[338687960,1726873852558,-248.82804,0.00015468,2]
[338687961,1726873852568,-248.82804,0.00015468,2]
[338687962,1726873852579,-151.0,0.00015468,2]
[338687963,1726873852591,-151.0,0.00015468,2]
[338687964,1726873852601,-151.0,0.00015468,2]
[338687965,1726873852611,-151.0,0.00015468,2]
[338687966,1726873852621,-442.910501,0.00015468,2]
[338687967,1726873852632,-151.0,0.00015468,2]
[338687968,1726873852642,-442.910501,0.00015468,2]
[338687969,1726873852653,-151.0,0.00015468,2]
[338687970,1726873852662,-151.0,0.00015468,2]
[338687971,1726873852672,-151.0,0.00015468,2]
[338687972,1726873852681,-500.0,0.00015468,2]
[338687973,1726873852690,-626.25,0.00015468,2]
[338687974,1726873852699,-500.0,0.00015468,2]
[338687975,1726873852708,-500.0,0.00015468,2]
[338687976,1726873852718,-500.0,0.00015468,2]
[338687977,1726873852727,-500.0,0.00015468,2]
[338687978,1726873852737,-500.0,0.00015468,2]
[338687979,1726873852748,-500.0,0.00015468,2]
[338687980,1726873852759,-500.0,0.00015468,2]
[338687981,1726873852768,-500.0,0.00015468,2]
[338687982,1726873852777,-500.0,0.00015468,2]
[338687983,1726873852786,-500.0,0.00015468,2]
[338687984,1726873852795,-500.0,0.00015468,2]
[338687985,1726873852805,-500.0,0.00015468,2]
[338687986,1726873852813,-893.7,0.00015468,2]
[338687987,1726873852823,-500.0,0.00015468,2]
[338687988,1726873852832,-500.0,0.00015468,2]
[338687989,1726873852842,-500.0,0.00015468,2]
[338687990,1726873852852,-500.0,0.00015468,2]
[338687991,1726873852861,-500.0,0.00015468,2]
[338687992,1726873852871,-500.0,0.00015468,2]
[338687993,1726873852882,-197.8055165,0.00015468,2]
[338687994,1726873852894,-500.0,0.00015468,2]
[338687995,1726873852903,-500.0,0.00015468,2]
[338687996,1726873852914,-500.0,0.00015468,2]
[338687997,1726873852925,-500.0,0.00015468,2]
[338687998,1726873852934,-500.0,0.00015468,2]
[338687999,1726873852945,-18728.24,0.00015468,2]
[338688000,1726873852956,-602.83,0.00015468,2]
[338688001,1726873852964,-151.0,0.00015468,2]
[338688002,1726873852973,-151.0,0.00015468,2]
[338688003,1726873852983,-3195.2,0.00015468,2]
[338688004,1726873852992,-500.0,0.00015468,2]
[338688005,1726873853002,-500.0,0.00015468,2]
[338688006,1726873853011,-500.0,0.00015468,2]
[338688007,1726873853020,-500.0,0.00015468,2]
[338688008,1726873853029,-449.326538,0.00015468,2]
[338688009,1726873853039,-449.326538,0.00015468,2]
[338688010,1726873853048,-500.0,0.00015468,2]
[338688011,1726873853057,-500.0,0.00015468,2]
[338688012,1726873853066,-500.0,0.00015468,2]
[338688013,1726873853075,-500.0,0.00015468,2]
[338688014,1726873853084,-500.0,0.00015468,2]
[338688015,1726873853093,-626.3,0.00015468,2]
[338688016,1726873853102,-151.0,0.00015468,2]
[338688017,1726873853111,-500.0,0.00015468,2]
[338688018,1726873853120,-151.0,0.00015468,2]
[338688019,1726873853130,-500.0,0.00015468,2]
[338688020,1726873853143,-500.0,0.00015468,2]
[338688021,1726873853154,-500.0,0.00015468,2]
[338688022,1726873853163,-500.0,0.00015468,2]
[338688023,1726873853172,-500.0,0.00015468,2]
[338688024,1726873853181,-571.635939,0.00015468,2]
[338688025,1726873853191,-500.0,0.00015468,2]
[338688026,1726873853200,-304.31183976,0.00015468,2]
[338688027,1726873853209,-571.635939,0.00015468,2]
[338688028,1726873853218,-657.843271,0.00015468,2]
[338688029,1726873853227,-500.0,0.00015468,2]
[338688030,1726873853236,-657.843271,0.00015468,2]
[338688031,1726873853245,-912.723033,0.00015468,2]
[338688032,1726873853254,-500.0,0.00015468,2]
[338688033,1726873853263,-912.723033,0.00015468,2]
[338688034,1726873853273,-500.0,0.00015468,2]
[338688035,1726873853282,-500.0,0.00015468,2]
[338688036,1726873853291,-151.0,0.00015473,2]
[338688037,1726873853300,-151.0,0.00015473,2]
[338688038,1726873853309,-151.0,0.00015473,2]
[338688039,1726873853318,-151.0,0.00015473,2]
[338688040,1726873853327,-181.212739,0.00015477,2]
[338688041,1726873853336,-181.212739,0.00015477,2]
[338688042,1726873853345,-151.0,0.00015477,2]
[338688043,1726873853354,-151.0,0.00015478,2]
[338688044,1726873853363,-248.82804,0.00015478,2]
[338688045,1726873853372,-248.82804,0.00015478,2]
[338688046,1726873853381,-151.0,0.00015478,2]
[338688047,1726873853390,-151.0,0.00015478,2]
[338688048,1726873853399,-151.0,0.00015478,2]
[338688049,1726873853409,-151.0,0.00015478,2]
[338688050,1726873853419,-442.910501,0.00015478,2]
[338688051,1726873853429,-260.715585,0.00015478,2]